[Event "Late-Titled-Tuesday-Blitz-March-19-2024"]
[Site "Chess.com"]
[Date "2024.03.19"]
[Round "5"]
[White "David_ATM"]
[Black "malakismayil"]
[Result "0-1"]
[WhiteElo "2323"]
[BlackElo "2517"]
[TimeControl "180+1"]
[EndTime "14:56:23 PDT"]
[Termination "malakismayil won by checkmate"]

1. e4 {[%clk 0:03:00.9]} 1... e5 {[%clk 0:02:59.5]} 2. Nf3 {[%clk 0:02:59.6]}
2... Nc6 {[%clk 0:03:00.1]} 3. Bb5 {[%clk 0:02:59.9]} 3... a6 {[%clk 0:03:00.1]}
4. Ba4 {[%clk 0:03:00]} 4... Nf6 {[%clk 0:03:00.8]} 5. O-O {[%clk 0:03:00.3]}
5... b5 {[%clk 0:03:01.4]} 6. Bb3 {[%clk 0:03:00.4]} 6... Be7 {[%clk 0:03:02.1]}
7. Re1 {[%clk 0:02:58.2]} 7... O-O {[%clk 0:03:02.7]} 8. h3 {[%clk 0:02:58.2]}
8... d6 {[%clk 0:03:00.8]} 9. c3 {[%clk 0:02:58.5]} 9... h6 {[%clk 0:02:59.6]}
10. d4 {[%clk 0:02:55.8]} 10... Re8 {[%clk 0:02:59.7]} 11. Nbd2 {[%clk
0:02:52.8]} 11... Bf8 {[%clk 0:02:58.8]} 12. Nf1 {[%clk 0:02:47]} 12... Qe7
{[%clk 0:02:47.6]} 13. Ng3 {[%clk 0:02:27.1]} 13... g6 {[%clk 0:02:45.9]} 14. a4
{[%clk 0:02:22.1]} 14... Bb7 {[%clk 0:02:41.8]} 15. Qe2 {[%clk 0:02:17.8]} 15...
Na5 {[%clk 0:02:38.2]} 16. Bc2 {[%clk 0:02:15.4]} 16... Qd7 {[%clk 0:02:08.3]}
17. Rd1 {[%clk 0:02:05.6]} 17... exd4 {[%clk 0:02:01.8]} 18. cxd4 {[%clk
0:02:01.2]} 18... Bg7 {[%clk 0:01:46.2]} 19. Bd3 {[%clk 0:01:37.7]} 19... b4
{[%clk 0:01:30.3]} 20. Bc2 {[%clk 0:01:17.4]} 20... Qe7 {[%clk 0:01:23]} 21. Re1
{[%clk 0:01:15.3]} 21... c5 {[%clk 0:01:17.2]} 22. Bd2 {[%clk 0:01:13.8]} 22...
Nc6 {[%clk 0:01:15]} 23. Be3 {[%clk 0:00:33.3]} 23... Rac8 {[%clk 0:01:02.5]}
24. Rad1 {[%clk 0:00:33.6]} 24... Nb8 {[%clk 0:00:59.5]} 25. d5 {[%clk
0:00:29.1]} 25... Nbd7 {[%clk 0:00:58.5]} 26. b3 {[%clk 0:00:19.9]} 26... Ne5
{[%clk 0:00:56]} 27. Nxe5 {[%clk 0:00:20.5]} 27... Qxe5 {[%clk 0:00:56.6]} 28.
Qd3 {[%clk 0:00:18.2]} 28... g5 {[%clk 0:00:40.1]} 29. Bc1 {[%clk 0:00:18.5]}
29... Rcd8 {[%clk 0:00:36]} 30. Nf1 {[%clk 0:00:18.9]} 30... Nh5 {[%clk
0:00:29.1]} 31. Bb1 {[%clk 0:00:14.7]} 31... Qc3 {[%clk 0:00:28.9]} 32. Qxc3
{[%clk 0:00:14.4]} 32... Bxc3 {[%clk 0:00:29.4]} 33. Re2 {[%clk 0:00:08.2]}
33... a5 {[%clk 0:00:27.8]} 34. Bd3 {[%clk 0:00:08.5]} 34... Nf4 {[%clk
0:00:27]} 35. Bxf4 {[%clk 0:00:08.1]} 35... gxf4 {[%clk 0:00:27.9]} 36. f3
{[%clk 0:00:07.8]} 36... f5 {[%clk 0:00:26.2]} 37. Nd2 {[%clk 0:00:06.1]} 37...
Re5 {[%clk 0:00:24.4]} 38. Nc4 {[%clk 0:00:06.1]} 38... Re7 {[%clk 0:00:20.6]}
39. Kf1 {[%clk 0:00:04.4]} 39... Ba6 {[%clk 0:00:14.5]} 40. Rc1 {[%clk
0:00:03.1]} 40... Bxc4 {[%clk 0:00:14.4]} 41. Bxc4 {[%clk 0:00:02.8]} 41... fxe4
{[%clk 0:00:14.6]} 42. fxe4 {[%clk 0:00:03.2]} 42... Rde8 {[%clk 0:00:14.8]} 43.
Bd3 {[%clk 0:00:03.3]} 43... Kg7 {[%clk 0:00:13.7]} 44. Rcc2 {[%clk 0:00:03.5]}
44... Re5 {[%clk 0:00:13.4]} 45. Kf2 {[%clk 0:00:04]} 45... Kg6 {[%clk
0:00:11.9]} 46. Kf3 {[%clk 0:00:04.5]} 46... Kg5 {[%clk 0:00:12.6]} 47. Rf2
{[%clk 0:00:04.7]} 47... Bd4 {[%clk 0:00:12.2]} 48. Rf1 {[%clk 0:00:04.5]} 48...
Rf8 {[%clk 0:00:12.5]} 49. Re2 {[%clk 0:00:03.8]} 49... Kf6 {[%clk 0:00:10.1]}
50. Rh1 {[%clk 0:00:04.3]} 50... Rg5 {[%clk 0:00:09.6]} 51. g4 {[%clk
0:00:04.5]} 51... fxg3 {[%clk 0:00:09.3]} 52. Kg2 {[%clk 0:00:05]} 52... Ke5
{[%clk 0:00:09.6]} 53. Rd2 {[%clk 0:00:03.2]} 53... Rf2+ {[%clk 0:00:09.3]} 54.
Rxf2 {[%clk 0:00:03.1]} 54... gxf2+ {[%clk 0:00:10.2]} 55. Kf1 {[%clk
0:00:03.7]} 55... Rg3 {[%clk 0:00:10.6]} 56. Bc4 {[%clk 0:00:03.2]} 56... Kxe4
{[%clk 0:00:07.9]} 57. Ke2 {[%clk 0:00:02.1]} 57... Rg1 {[%clk 0:00:08.1]} 58.
Rh2 {[%clk 0:00:01.3]} 58... f1=Q+ {[%clk 0:00:08.1]} 59. Kd2 {[%clk 0:00:02.2]}
59... Qc1+ {[%clk 0:00:07.3]} 60. Ke2 {[%clk 0:00:02.4]} 60... Qe3# {[%clk
0:00:07]} 0-1

[Event "Late-Titled-Tuesday-Blitz-March-19-2024"]
[Site "Chess.com"]
[Date "2024.03.19"]
[Round "5"]
[White "PedroGil25"]
[Black "Jagerrmeisterr"]
[Result "0-1"]
[WhiteElo "2481"]
[BlackElo "2764"]
[TimeControl "180+1"]
[EndTime "14:56:25 PDT"]
[Termination "Jagerrmeisterr won by resignation"]

1. e4 {[%clk 0:03:00.9]} 1... c6 {[%clk 0:02:57.7]} 2. Nc3 {[%clk 0:02:48.5]}
2... d5 {[%clk 0:02:56.3]} 3. Nf3 {[%clk 0:02:47.5]} 3... dxe4 {[%clk
0:02:48.3]} 4. Nxe4 {[%clk 0:02:48.4]} 4... Nf6 {[%clk 0:02:48.4]} 5. Qe2 {[%clk
0:02:46.7]} 5... Bg4 {[%clk 0:02:47.6]} 6. h3 {[%clk 0:02:44.1]} 6... Bxf3
{[%clk 0:02:47.7]} 7. Qxf3 {[%clk 0:02:43.9]} 7... Nxe4 {[%clk 0:02:47.9]} 8.
Qxe4 {[%clk 0:02:44.8]} 8... Qd5 {[%clk 0:02:48.3]} 9. Bd3 {[%clk 0:02:43.4]}
9... Nd7 {[%clk 0:02:45.6]} 10. O-O {[%clk 0:02:42.6]} 10... Qxe4 {[%clk
0:02:26.5]} 11. Bxe4 {[%clk 0:02:41.2]} 11... Nf6 {[%clk 0:02:27.2]} 12. Bf3
{[%clk 0:02:34.5]} 12... O-O-O {[%clk 0:02:27.4]} 13. d3 {[%clk 0:02:33.8]}
13... e5 {[%clk 0:02:17.2]} 14. Bg5 {[%clk 0:02:31.1]} 14... Bd6 {[%clk
0:02:06]} 15. Rfe1 {[%clk 0:02:30]} 15... Kc7 {[%clk 0:01:59.4]} 16. Rad1 {[%clk
0:02:27.6]} 16... h6 {[%clk 0:01:52.2]} 17. Bxf6 {[%clk 0:02:24.7]} 17... gxf6
{[%clk 0:01:53.1]} 18. Be4 {[%clk 0:02:22.2]} 18... h5 {[%clk 0:01:47.9]} 19. h4
{[%clk 0:02:19.6]} 19... Bc5 {[%clk 0:01:33.3]} 20. g3 {[%clk 0:02:18.9]} 20...
b5 {[%clk 0:01:30.9]} 21. Kg2 {[%clk 0:02:18.8]} 21... a5 {[%clk 0:01:31]} 22.
c3 {[%clk 0:02:10.2]} 22... Kb6 {[%clk 0:01:22]} 23. a3 {[%clk 0:02:07.9]} 23...
b4 {[%clk 0:01:19.6]} 24. cxb4 {[%clk 0:02:05.5]} 24... axb4 {[%clk 0:01:19.8]}
25. a4 {[%clk 0:02:05.1]} 25... Bd4 {[%clk 0:01:19.1]} 26. Rc1 {[%clk
0:02:03.5]} 26... c5 {[%clk 0:01:19.6]} 27. b3 {[%clk 0:02:01.9]} 27... Bc3
{[%clk 0:01:13.9]} 28. Rf1 {[%clk 0:01:57.7]} 28... Rd6 {[%clk 0:01:07.5]} 29.
Kf3 {[%clk 0:01:57.2]} 29... Rhd8 {[%clk 0:01:01.8]} 30. Ke2 {[%clk 0:01:56.4]}
30... c4 {[%clk 0:01:02]} 31. bxc4 {[%clk 0:01:47.2]} 31... Kc5 {[%clk
0:00:59.9]} 32. Rfd1 {[%clk 0:01:02.3]} 32... Ra6 {[%clk 0:00:56.1]} 33. Bf3
{[%clk 0:01:02.6]} 33... Rxa4 {[%clk 0:00:39.4]} 34. Bxh5 {[%clk 0:01:02.4]}
34... Ra2+ {[%clk 0:00:39.5]} 35. Kf1 {[%clk 0:01:02.4]} 35... Bd4 {[%clk
0:00:39.8]} 36. Be2 {[%clk 0:01:01]} 36... b3 {[%clk 0:00:39.9]} 37. h5 {[%clk
0:01:00.2]} 37... b2 {[%clk 0:00:30.7]} 38. Rb1 {[%clk 0:01:00.5]} 38... Kb4
{[%clk 0:00:29.1]} 39. Kg2 {[%clk 0:00:49.2]} 39... Kc3 {[%clk 0:00:27.2]} 40.
Rh1 {[%clk 0:00:44.7]} 40... Kd2 {[%clk 0:00:20.6]} 41. Bg4 {[%clk 0:00:41.8]}
41... Ra1 {[%clk 0:00:18.4]} 42. h6 {[%clk 0:00:40.6]} 42... Rxb1 {[%clk
0:00:15.9]} 43. Rxb1 {[%clk 0:00:37.3]} 43... Kc2 {[%clk 0:00:15.5]} 44. Rh1
{[%clk 0:00:37.5]} 44... b1=Q {[%clk 0:00:15.4]} 45. Rxb1 {[%clk 0:00:37.3]}
45... Kxb1 {[%clk 0:00:15.8]} 46. h7 {[%clk 0:00:37.4]} 46... f5 {[%clk
0:00:05.8]} 47. Bxf5 {[%clk 0:00:37.6]} 47... e4 {[%clk 0:00:06.5]} 48. Bxe4
{[%clk 0:00:37.8]} 48... Kb2 {[%clk 0:00:05.7]} 49. f4 {[%clk 0:00:38.3]} 49...
Kb3 {[%clk 0:00:05.8]} 50. g4 {[%clk 0:00:38.7]} 50... Kb4 {[%clk 0:00:06.3]}
51. g5 {[%clk 0:00:39.2]} 51... Kc5 {[%clk 0:00:06.7]} 52. Kf3 {[%clk
0:00:39.4]} 52... Kd6 {[%clk 0:00:07]} 53. Kg4 {[%clk 0:00:39.9]} 53... Bg7
{[%clk 0:00:07.2]} 54. f5 {[%clk 0:00:39.7]} 54... f6 {[%clk 0:00:05.9]} 55. d4
{[%clk 0:00:36.6]} 55... fxg5 {[%clk 0:00:03.7]} 56. c5+ {[%clk 0:00:37.1]}
56... Ke7 {[%clk 0:00:04.1]} 57. d5 {[%clk 0:00:37.3]} 57... Bd4 {[%clk
0:00:04]} 58. c6 {[%clk 0:00:32.2]} 58... Bf6 {[%clk 0:00:02.2]} 59. Kh5 {[%clk
0:00:25.8]} 59... g4 {[%clk 0:00:02.6]} 60. Kxg4 {[%clk 0:00:25.9]} 60... Be5
{[%clk 0:00:03.3]} 61. Kg5 {[%clk 0:00:25.6]} 61... Kf7 {[%clk 0:00:04]} 62. Bf3
{[%clk 0:00:22.2]} 62... Kg7 {[%clk 0:00:03.5]} 63. Be4 {[%clk 0:00:20.4]} 63...
Kxh7 {[%clk 0:00:03.7]} 64. f6+ {[%clk 0:00:20.9]} 64... Kg8 {[%clk 0:00:04.4]}
65. Kf5 {[%clk 0:00:21.8]} 65... Bc7 {[%clk 0:00:04.4]} 66. Ke6 {[%clk
0:00:20.7]} 66... Kf8 {[%clk 0:00:05]} 67. Bg6 {[%clk 0:00:19.9]} 67... Rd6+
{[%clk 0:00:05.5]} 68. Ke5 {[%clk 0:00:18.6]} 68... Rxc6+ {[%clk 0:00:05.6]} 69.
Kf5 {[%clk 0:00:19.3]} 69... Rd6 {[%clk 0:00:06.2]} 70. Ke5 {[%clk 0:00:19.4]}
70... Ra6+ {[%clk 0:00:06.6]} 71. Kf5 {[%clk 0:00:19.8]} 71... Bd8 {[%clk
0:00:07.3]} 72. f7 {[%clk 0:00:19.7]} 72... Rf6+ {[%clk 0:00:07.6]} 0-1

[Event "Late-Titled-Tuesday-Blitz-March-19-2024"]
[Site "Chess.com"]
[Date "2024.03.19"]
[Round "5"]
[White "Sacbutt"]
[Black "Sinquefield"]
[Result "0-1"]
[WhiteElo "2324"]
[BlackElo "2520"]
[TimeControl "180+1"]
[EndTime "14:56:30 PDT"]
[Termination "Sinquefield won by resignation"]

1. e4 {[%clk 0:03:00.9]} 1... d6 {[%clk 0:02:58.2]} 2. d4 {[%clk 0:03:00.3]}
2... Nf6 {[%clk 0:02:57.9]} 3. Nc3 {[%clk 0:03:00.2]} 3... Nbd7 {[%clk
0:02:58.1]} 4. Nf3 {[%clk 0:02:57.5]} 4... e5 {[%clk 0:02:58.4]} 5. h3 {[%clk
0:02:54.4]} 5... Be7 {[%clk 0:02:58.1]} 6. Be3 {[%clk 0:02:53.3]} 6... O-O
{[%clk 0:02:56]} 7. Be2 {[%clk 0:02:50.9]} 7... c6 {[%clk 0:02:55.9]} 8. O-O
{[%clk 0:02:49.6]} 8... b5 {[%clk 0:02:53.7]} 9. a3 {[%clk 0:02:48.3]} 9... a6
{[%clk 0:02:48.8]} 10. Qd2 {[%clk 0:02:45.2]} 10... Bb7 {[%clk 0:02:47.4]} 11.
Rad1 {[%clk 0:02:43.5]} 11... Qc7 {[%clk 0:02:47.2]} 12. Rfe1 {[%clk 0:02:39.2]}
12... Rad8 {[%clk 0:02:45.6]} 13. Bf1 {[%clk 0:02:27.2]} 13... Rfe8 {[%clk
0:02:42]} 14. Qc1 {[%clk 0:02:22]} 14... Bf8 {[%clk 0:02:40.8]} 15. Bg5 {[%clk
0:02:18.2]} 15... h6 {[%clk 0:02:32.9]} 16. Be3 {[%clk 0:02:03.8]} 16... d5
{[%clk 0:02:22]} 17. exd5 {[%clk 0:01:56.1]} 17... exd4 {[%clk 0:01:36.7]} 18.
Nxd4 {[%clk 0:01:43.5]} 18... cxd5 {[%clk 0:01:33.2]} 19. Bf4 {[%clk 0:01:37]}
19... Qb6 {[%clk 0:01:29.4]} 20. Nce2 {[%clk 0:01:18.5]} 20... Ne4 {[%clk
0:01:22.6]} 21. c3 {[%clk 0:01:15.5]} 21... Ne5 {[%clk 0:01:07.5]} 22. f3 {[%clk
0:01:09.3]} 22... Nc5 {[%clk 0:01:03.1]} 23. Bxe5 {[%clk 0:00:58.4]} 23... Rxe5
{[%clk 0:01:01.7]} 24. Kh1 {[%clk 0:00:51.4]} 24... Bd6 {[%clk 0:00:48.8]} 25.
Nf4 {[%clk 0:00:46.2]} 25... Rxe1 {[%clk 0:00:45.5]} 26. Rxe1 {[%clk 0:00:47.1]}
26... Bb8 {[%clk 0:00:42.2]} 27. Nd3 {[%clk 0:00:44.4]} 27... Nxd3 {[%clk
0:00:18.1]} 28. Bxd3 {[%clk 0:00:45.3]} 28... Qd6 {[%clk 0:00:17.7]} 29. f4
{[%clk 0:00:25.9]} 29... Qxf4 {[%clk 0:00:17.3]} 30. Qxf4 {[%clk 0:00:25.4]}
30... Bxf4 {[%clk 0:00:18.2]} 31. Re7 {[%clk 0:00:23.7]} 31... Bc8 {[%clk
0:00:17.7]} 32. Kg1 {[%clk 0:00:13.2]} 32... Bd6 {[%clk 0:00:16.5]} 33. Re2
{[%clk 0:00:09.7]} 33... Bc5 {[%clk 0:00:15]} 34. Kf1 {[%clk 0:00:08.8]} 34...
Kf8 {[%clk 0:00:11.9]} 35. Nf5 {[%clk 0:00:07.8]} 35... Bxf5 {[%clk 0:00:09.1]}
36. Bxf5 {[%clk 0:00:07.6]} 36... g6 {[%clk 0:00:09.7]} 37. Bd3 {[%clk
0:00:07.5]} 37... d4 {[%clk 0:00:09]} 38. cxd4 {[%clk 0:00:05.5]} 38... Bxd4
{[%clk 0:00:09.5]} 39. Be4 {[%clk 0:00:04.8]} 39... Rc8 {[%clk 0:00:08.7]} 40.
Rc2 {[%clk 0:00:01.6]} 40... Rxc2 {[%clk 0:00:08.4]} 41. Bxc2 {[%clk 0:00:02.4]}
41... Bxb2 {[%clk 0:00:09.1]} 42. a4 {[%clk 0:00:02.8]} 42... b4 {[%clk
0:00:07.3]} 43. Ke2 {[%clk 0:00:03]} 43... a5 {[%clk 0:00:07.2]} 44. Bb3 {[%clk
0:00:02.5]} 44... f5 {[%clk 0:00:06.7]} 45. g4 {[%clk 0:00:01.8]} 45... fxg4
{[%clk 0:00:06.4]} 46. hxg4 {[%clk 0:00:02.7]} 46... h5 {[%clk 0:00:07]} 47.
gxh5 {[%clk 0:00:02.7]} 47... gxh5 {[%clk 0:00:07.9]} 48. Kf3 {[%clk 0:00:03.3]}
48... Kg7 {[%clk 0:00:08.3]} 49. Kf4 {[%clk 0:00:03.9]} 49... Kh6 {[%clk
0:00:08.6]} 50. Bc4 {[%clk 0:00:03.1]} 50... Bf6 {[%clk 0:00:08.5]} 51. Bb3
{[%clk 0:00:03.4]} 51... Bg5+ {[%clk 0:00:06.6]} 52. Kf5 {[%clk 0:00:03]} 52...
Bd8 {[%clk 0:00:06.1]} 53. Kf4 {[%clk 0:00:03.2]} 53... Kg6 {[%clk 0:00:06.3]}
54. Bc2+ {[%clk 0:00:02.5]} 54... Kf6 {[%clk 0:00:06.6]} 55. Bb3 {[%clk
0:00:03]} 55... Bc7+ {[%clk 0:00:06.7]} 56. Ke4 {[%clk 0:00:03.3]} 56... Kg5
{[%clk 0:00:07.3]} 57. Kf3 {[%clk 0:00:03.7]} 57... h4 {[%clk 0:00:06.4]} 58.
Be6 {[%clk 0:00:03.6]} 58... Kf6 {[%clk 0:00:05.5]} 59. Bb3 {[%clk 0:00:03.8]}
59... Ke5 {[%clk 0:00:05.2]} 60. Kg4 {[%clk 0:00:03.9]} 60... Bd8 {[%clk
0:00:05.2]} 61. Kf3 {[%clk 0:00:03.9]} 61... Kd4 {[%clk 0:00:05.8]} 62. Kg4
{[%clk 0:00:03.4]} 62... Kc3 {[%clk 0:00:05.9]} 63. Bd5 {[%clk 0:00:03.6]} 63...
b3 {[%clk 0:00:05.5]} 64. Be4 {[%clk 0:00:02]} 64... Kd2 {[%clk 0:00:05.3]} 65.
Bf5 {[%clk 0:00:02.9]} 65... Kc1 {[%clk 0:00:05.1]} 66. Bg6 {[%clk 0:00:03.6]}
66... b2 {[%clk 0:00:05.6]} 67. Be4 {[%clk 0:00:04]} 67... b1=Q {[%clk
0:00:06.5]} 68. Bxb1 {[%clk 0:00:04.3]} 68... Kxb1 {[%clk 0:00:07.4]} 0-1

[Event "Late-Titled-Tuesday-Blitz-March-19-2024"]
[Site "Chess.com"]
[Date "2024.03.19"]
[Round "5"]
[White "norwaytoadog"]
[Black "mightysmasher"]
[Result "1-0"]
[WhiteElo "2370"]
[BlackElo "2584"]
[TimeControl "180+1"]
[EndTime "14:56:32 PDT"]
[Termination "norwaytoadog won by checkmate"]

1. e4 {[%clk 0:03:00.1]} 1... e6 {[%clk 0:02:59.9]} 2. d4 {[%clk 0:03:00]} 2...
d5 {[%clk 0:03:00.2]} 3. Nc3 {[%clk 0:03:00.6]} 3... dxe4 {[%clk 0:03:00.3]} 4.
Nxe4 {[%clk 0:03:00.4]} 4... Nd7 {[%clk 0:03:01.2]} 5. Nf3 {[%clk 0:02:59.3]}
5... Ngf6 {[%clk 0:03:01]} 6. Bd3 {[%clk 0:02:59.3]} 6... Nxe4 {[%clk
0:03:01.1]} 7. Bxe4 {[%clk 0:02:59.2]} 7... Nf6 {[%clk 0:03:02]} 8. Bg5 {[%clk
0:02:58.9]} 8... Be7 {[%clk 0:03:01.7]} 9. Bd3 {[%clk 0:02:57.2]} 9... h6 {[%clk
0:03:01]} 10. Bh4 {[%clk 0:02:54.7]} 10... O-O {[%clk 0:03:00.7]} 11. Qe2 {[%clk
0:02:52.5]} 11... a5 {[%clk 0:02:59.7]} 12. O-O {[%clk 0:02:46.9]} 12... Rb8
{[%clk 0:02:58.7]} 13. Rad1 {[%clk 0:02:40.5]} 13... b6 {[%clk 0:02:47.1]} 14.
Ne5 {[%clk 0:02:37.4]} 14... Bb7 {[%clk 0:02:45.2]} 15. Bxf6 {[%clk 0:02:25]}
15... Bxf6 {[%clk 0:02:43.7]} 16. Be4 {[%clk 0:02:25.1]} 16... Bxe5 {[%clk
0:02:34.1]} 17. dxe5 {[%clk 0:02:19.5]} 17... Qe7 {[%clk 0:02:30.4]} 18. Bxb7
{[%clk 0:02:13.9]} 18... Rxb7 {[%clk 0:02:29.9]} 19. Qe4 {[%clk 0:01:27.8]}
19... Rbb8 {[%clk 0:02:27.8]} 20. Rd4 {[%clk 0:01:25.2]} 20... Rfd8 {[%clk
0:02:24.8]} 21. Rfd1 {[%clk 0:01:25.3]} 21... Rxd4 {[%clk 0:02:24.3]} 22. Qxd4
{[%clk 0:01:25.4]} 22... Qg5 {[%clk 0:02:20.8]} 23. h4 {[%clk 0:01:14.3]} 23...
Qf5 {[%clk 0:02:18.2]} 24. Rd3 {[%clk 0:01:11.6]} 24... Rf8 {[%clk 0:02:15.4]}
25. c4 {[%clk 0:01:02.9]} 25... c5 {[%clk 0:02:09.8]} 26. Qe3 {[%clk 0:01:01]}
26... Qg4 {[%clk 0:02:06.7]} 27. g3 {[%clk 0:00:58.9]} 27... Qxc4 {[%clk
0:02:05.7]} 28. b3 {[%clk 0:00:56.2]} 28... Qb5 {[%clk 0:02:00.1]} 29. a4 {[%clk
0:00:55.4]} 29... Qc6 {[%clk 0:01:57.9]} 30. Rd6 {[%clk 0:00:54.9]} 30... Qc7
{[%clk 0:01:58]} 31. h5 {[%clk 0:00:53.9]} 31... Rd8 {[%clk 0:01:53.5]} 32. Qd3
{[%clk 0:00:53.9]} 32... Rxd6 {[%clk 0:01:53.1]} 33. exd6 {[%clk 0:00:53.1]}
33... Qd7 {[%clk 0:01:53.5]} 34. g4 {[%clk 0:00:46.3]} 34... e5 {[%clk 0:01:51]}
35. f3 {[%clk 0:00:44.4]} 35... Kf8 {[%clk 0:01:46.6]} 36. Qd5 {[%clk
0:00:41.4]} 36... f6 {[%clk 0:01:41.1]} 37. Kg2 {[%clk 0:00:37]} 37... Qd8
{[%clk 0:00:55.3]} 38. Qc6 {[%clk 0:00:25.1]} 38... Kf7 {[%clk 0:00:45.5]} 39.
Qc7+ {[%clk 0:00:23.1]} 39... Ke8 {[%clk 0:00:43]} 40. Qxg7 {[%clk 0:00:16.6]}
40... Qxd6 {[%clk 0:00:42.7]} 41. Qxh6 {[%clk 0:00:16.7]} 41... Kf7 {[%clk
0:00:43]} 42. Qh7+ {[%clk 0:00:16.4]} 42... Kf8 {[%clk 0:00:42.9]} 43. h6 {[%clk
0:00:15.9]} 43... Qd2+ {[%clk 0:00:42.9]} 44. Kh3 {[%clk 0:00:16.2]} 44... Qf4
{[%clk 0:00:39]} 45. Qg6 {[%clk 0:00:15.8]} 45... Qxf3+ {[%clk 0:00:38.7]} 46.
Kh4 {[%clk 0:00:15.6]} 46... Qf4 {[%clk 0:00:35.2]} 47. Kh3 {[%clk 0:00:15.7]}
47... e4 {[%clk 0:00:23.4]} 48. Qg7+ {[%clk 0:00:15.6]} 48... Ke8 {[%clk
0:00:22.6]} 49. h7 {[%clk 0:00:15.9]} 49... Qe3+ {[%clk 0:00:10.1]} 50. Kh4
{[%clk 0:00:14.7]} 50... Qf2+ {[%clk 0:00:10]} 51. Kh5 {[%clk 0:00:14.3]} 51...
Qh2+ {[%clk 0:00:10.1]} 52. Kg6 {[%clk 0:00:14.1]} 52... e3 {[%clk 0:00:08.9]}
53. h8=Q+ {[%clk 0:00:13.5]} 53... Qxh8 {[%clk 0:00:09.5]} 54. Qxh8+ {[%clk
0:00:13.6]} 54... Ke7 {[%clk 0:00:10.4]} 55. Qxf6+ {[%clk 0:00:13.6]} 55... Kd7
{[%clk 0:00:10.7]} 56. Qf5+ {[%clk 0:00:13]} 56... Kc7 {[%clk 0:00:10.1]} 57.
Qe5+ {[%clk 0:00:13]} 57... Kc6 {[%clk 0:00:11]} 58. Qxe3 {[%clk 0:00:12.5]}
58... Kd5 {[%clk 0:00:11.9]} 59. Qd3+ {[%clk 0:00:12.7]} 59... Ke5 {[%clk
0:00:12]} 60. g5 {[%clk 0:00:12.3]} 60... Ke6 {[%clk 0:00:08]} 61. Qf5+ {[%clk
0:00:11.6]} 61... Kd6 {[%clk 0:00:08.2]} 62. Kf7 {[%clk 0:00:12]} 62... c4
{[%clk 0:00:08.8]} 63. bxc4 {[%clk 0:00:11]} 63... b5 {[%clk 0:00:09.3]} 64. g6
{[%clk 0:00:10.6]} 64... bxc4 {[%clk 0:00:08.4]} 65. g7 {[%clk 0:00:10.5]} 65...
c3 {[%clk 0:00:09.3]} 66. g8=Q {[%clk 0:00:10]} 66... c2 {[%clk 0:00:10.2]} 67.
Qd8+ {[%clk 0:00:10]} 67... Kc6 {[%clk 0:00:09.7]} 68. Qfd5# {[%clk 0:00:10.4]}
1-0